[Event "Swedish Championship 2022"]
[Site "Uppsala"]
[Date "2022.07.03"]
[Round "2.1"]
[White "Cramling, Pia"]
[Black "Johansson, Linus"]
[Result "1/2-1/2"]
[ECO "D36"]
[WhiteElo "2459"]
[BlackElo "2468"]
[Annotator "TA"]
[PlyCount "82"]
[EventDate "2022.07.01"]
[EventType "tourn"]
[EventCountry "SWE"]
[SourceTitle "playchess.com"]
[Source "ChessBase"]
[SourceQuality "1"]
[TimeControl "40/5400+30:1800+30"]

{[%evp 19,82,2,19,6,12,6,11,0,0,0,0,0,0,0,56,58,76,31,29,22,19,0,18,-7,0,0,0,0,0,0,9,8,8,0,8,0,8,0,8,0,8,8,8,8,8,0,9,9,18,0,0,0,25,25,25,25,25,25,25,25,25,0,25,0,25]} 1. Nf3 {[%emt 0:00:40]} d5 {[%emt 0:00:21]} 2. d4 {[%emt 0:00:13]} Nf6 {[%emt 0:00:16]} 3. c4 {[%emt 0:00:19]} e6 {[%emt 0:00:07]} 4. Nc3 {[%emt 0:00:39]} Nbd7 {[%emt 0:00:13]} 5. cxd5 {[%emt 0:04:23]} exd5 {[%emt 0:00:11]} 6. Bg5 {[%emt 0:01:29]} c6 {[%emt 0:00:09]} 7. Qc2 {[%emt 0:00:43]} Be7 {[%emt 0:17:09]} 8. e3 {[%emt 0:01:30]} Nh5 {[%emt 0:00:20]} 9. Bxe7 {[%emt 0:14:09]} Qxe7 {[%emt 0:00:06]} 10. O-O-O {[%emt 0:01:08]} Nb6 {[%emt 0:00:15]} 11. h3 {[%emt 0:00:59] 11.Bd3 might become the main line. D36: Queen's Gambit Declined: Exchange Variation: Main line (5 Bg5 c6 6 Qc2).} Be6 {[%emt 0:02:02]} 12. Bd3 {[%emt 0:01:57]} O-O-O {[%emt 0:01:20]} 13. Kb1 {[%emt 0:00:20]} ({Much worse is} 13. Bxh7 g6 14. Bxg6 (14. g4 Ng7 $17) 14... fxg6 $17) 13... Kb8 {[%emt 0:00:06]} 14. Rc1 {[%emt 0:00:40]} ({Don't play} 14. Bxh7 g6 15. Bxg6 (15. g4 $2 Rxh7 16. gxh5 Bf5 $19) 15... fxg6 $19) 14... g6 {[%emt 0:06:10]} 15. Na4 {[%emt 0:08:27]} Nxa4 {[%emt 0:00:10]} 16. Qxa4 {[%emt 0:00:04]} Ng7 {[%emt 0:00:22]} ({Black should play} 16... Nf6 $11) 17. Rc3 $14 {[%emt 0:13:18]} Bf5 {[%emt 0:08:15] [#]} 18. Rd1 $146 {[%emt 0:01:47]} ({Predecessor:} 18. Rhc1 Rc8 19. Ka1 Bxd3 20. Rxd3 f6 21. Ra3 a6 22. Ne1 Ne6 23. Nd3 c5 24. dxc5 Nxc5 {1-0 (60) Firat,B (2487)-Royal,S (2296) Terme Catez 2022}) 18... Rc8 {[%emt 0:09:16][%cal Bd8c8,Bc8c7,Bc7e7][%mdl 32]} 19. Ra3 {[%emt 0:11:44]} a6 {[%emt 0:01:25]} 20. Rb3 {[%emt 0:04:21] [#] Strongly threatening Qxa6.} Ka8 {[%emt 0:03:32]} 21. Qa5 {[%emt 0:03:09]} (21. Ne5 {feels hotter.} Ka7 22. Qa5 Bxd3+ 23. Nxd3 Qc7 24. Qc5+) 21... Qc7 {[%emt 0:10:05]} 22. Qxc7 {[%emt 0:04:21]} Rxc7 {[%emt 0:00:18]} 23. Kc2 {[%emt 0:01:45]} Re7 {[%emt 0:02:59]} 24. Rc3 {[%emt 0:01:26]} Bxd3+ {[%emt 0:02:10]} 25. Kxd3 {[%emt 0:00:27]} Nf5 {[%emt 0:00:15]} 26. a4 {[%emt 0:03:22]} Nd6 {[%emt 0:00:40]} 27. Rc2 {[%emt 0:00:30]} f6 {[%emt 0:01:58]} 28. b3 {[%emt 0:04:10]} Kb8 {[%emt 0:05:52]} 29. h4 {[%emt 0:01:27]} Kc7 {[%emt 0:00:30]} 30. a5 {[%emt 0:00:48]} Ne4 {[%emt 0:06:55]} 31. Ke2 {[%emt 0:01:01]} h6 {[%emt 0:00:59]} 32. Nd2 {[%emt 0:01:33]} Nxd2 {[%emt 0:02:03]} 33. Kxd2 $11 {[%emt 0:01:51][%mdl 4096] Endgame KRR-KRR} f5 {[%emt 0:02:45]} 34. g3 {[%emt 0:01:42]} g5 {[%emt 0:01:48]} 35. Rh1 {[%emt 0:00:25] Hoping for hxg5.} g4 {[%emt 0:00:38]} 36. Rhc1 {[%emt 0:02:02]} Kd6 {[%emt 0:00:22]} 37. Rc5 {[%emt 0:00:50]} Rb8 {[%emt 0:01:55]} 38. Kd3 {[%emt 0:00:51]} Rh8 {[%emt 0:00:15]} 39. R5c2 {[%emt 0:00:29]} Rb8 {[%emt 0:00:19]} 40. Rc5 {[%emt 0:00:13]} Rh8 {[%emt 0:00:09]} 41. R5c2 {[%emt 0:30:07]} Rb8 {[%emt 0:30:06] Weighted Error Value: White=0.08 (flawless) /Black=0.07 (flawless)} 1/2-1/2

[Event "Swedish Championship 2022"]
[Site "Uppsala"]
[Date "2022.07.03"]
[Round "2.2"]
[White "Seo, Jung Min"]
[Black "Jogstad, Martin"]
[Result "1-0"]
[ECO "D36"]
[WhiteElo "2492"]
[BlackElo "2384"]
[Annotator "TA"]
[PlyCount "123"]
[EventDate "2022.07.01"]
[EventType "tourn"]
[EventCountry "SWE"]
[SourceTitle "playchess.com"]
[Source "ChessBase"]
[SourceQuality "1"]
[TimeControl "40/5400+30:1800+30"]

{[%evp 16,123,25,17,30,13,8,2,20,9,20,10,15,18,0,10,6,7,7,5,9,8,29,22,35,25,31,21,45,20,17,12,4,0,28,35,14,6,35,35,44,43,38,41,44,42,58,70,64,65,57,55,72,72,78,65,89,83,93,81,94,81,82,91,99,99,109,109,118,115,105,87,96,85,135,135,144,140,184,135,166,174,178,144,285,254,245,247,270,208,388,383,376,359,491,483,1174,1136,1868,1723,2507,2443,2435,2084,2267,2097,29942,5720,29977,29978]} 1. d4 {[%emt 0:00:03]} d5 {[%emt 0:00:28]} 2. c4 {[%emt 0:00:03]} e6 {[%emt 0:00:14]} 3. Nc3 {[%emt 0:00:02]} Nf6 {[%emt 0:00:12]} 4. cxd5 {[%emt 0:00:24]} exd5 {[%emt 0:00:10]} 5. Bg5 {[%emt 0:00:38]} c6 {[%emt 0:00:11]} 6. e3 {[%emt 0:00:04]} Be7 {[%emt 0:00:09]} 7. Bd3 {[%emt 0:01:06]} O-O {[%emt 0:00:15]} 8. Qc2 {[%emt 0:00:20]} h6 {[%emt 0:00:23]} 9. Bh4 {[%emt 0:00:24]} Ne8 {[%emt 0:00:15] D36: Queen's Gambit Declined: Exchange Variation: Main line (5 Bg5 c6 6 Qc2).} 10. Bxe7 {[%emt 0:03:13]} Qxe7 {[%emt 0:00:09]} 11. Nge2 {[%emt 0:13:23][%cal Oc3d5]} Nd6 {[%emt 0:00:40] The position is equal.} 12. O-O {[%emt 0:00:06] [#]} Bg4 $146 {[%emt 0:01:20]} ({Predecessor:} 12... Nd7 13. Rad1 Nf6 14. Ng3 Bg4 15. Rde1 Nh5 16. Nh1 Be6 17. f3 f5 18. Nf2 Nf6 19. Ne2 Qf7 20. Ng3 Nh5 21. Nxh5 Qxh5 {1-0 (35) Tang,A (2508)-Goryachkina,A (2610) Chess.com INT 2022}) 13. Ng3 {[%emt 0:01:45]} Nd7 {[%emt 0:02:24]} 14. Rae1 {[%emt 0:01:10]} Be6 {[%emt 0:17:44]} 15. f3 {[%emt 0:06:17]} f5 {[%emt 0:31:28]} 16. Na4 {[%emt 0:15:33]} Rae8 {[%emt 0:10:45]} 17. Nc5 {[%emt 0:01:24]} Kh8 {[%emt 0:06:19]} 18. b3 {[%emt 0:07:08]} Qg5 {[%emt 0:02:44]} 19. Qc1 {[%emt 0:06:56]} Qe7 {[%emt 0:07:46]} 20. Ne2 {[%emt 0:02:02]} Bf7 {[%emt 0:01:03]} 21. Bb1 {[%emt 0:02:11]} Nf6 {[%emt 0:03:48]} 22. Ng3 {[%emt 0:04:02]} Bg6 {[%emt 0:01:23]} 23. Qd2 {[%emt 0:01:13]} Bh7 {[%emt 0:00:46]} 24. Bc2 {[%emt 0:00:59]} Nd7 {[%emt 0:01:55]} 25. Nxd7 {[%emt 0:03:03]} Qxd7 {[%emt 0:00:05]} 26. Ne2 {[%emt 0:00:06][%cal Bg3e2,Be2f4,Bf4d3,Bd3e5][%mdl 32]} Rf7 {[%emt 0:03:53]} 27. Nf4 {[%emt 0:00:34]} Rfe7 {[%emt 0:00:16]} 28. Nd3 {[%emt 0:00:08]} Qe6 {[%emt 0:01:09]} 29. f4 {[%emt 0:04:22]} Ne4 {[%emt 0:01:20]} 30. Qc1 {[%emt 0:00:03]} Qd6 {[%emt 0:01:08]} 31. Ne5 {[%emt 0:00:06]} Nf6 {[%emt 0:00:55]} 32. Bd3 {[%emt 0:00:31]} Rc7 {[%emt 0:02:30]} 33. Qb1 {[%emt 0:00:15]} Qe6 {[%emt 0:00:44]} 34. b4 {[%emt 0:01:01]} Rec8 {[%emt 0:01:46]} 35. a4 {[%emt 0:01:09]} Ne8 {[%emt 0:01:01]} 36. Rc1 {[%emt 0:01:07]} Nd6 {[%emt 0:00:02]} 37. Qb3 {[%emt 0:01:08]} Bg6 {[%emt 0:01:03]} 38. Rc3 {[%emt 0:00:31]} Be8 {[%emt 0:00:30]} 39. Rfc1 {[%emt 0:00:08]} Qe7 {[%emt 0:00:30]} 40. Qc2 {[%emt 0:00:15]} g6 {[%emt 0:00:32]} 41. b5 {[%emt 0:31:10]} Kg7 {[%emt 0:05:09]} 42. a5 {[%emt 0:00:00]} Nf7 {[%emt 0:14:10]} 43. bxc6 {[%emt 0:00:00]} bxc6 {[%emt 0:00:24]} 44. Rc5 {[%emt 0:00:00]} Rb8 {[%emt 0:10:11] [#]} (44... Nd8 $142) 45. Rxd5 $3 $16 {[%emt 0:00:00][%mdl 512]} Rcb7 {[%emt 0:00:01]} (45... Qa3 46. a6) 46. Rc5 {[%emt 0:00:00] 0x0.001764be5d6cdp-1022s more active pieces.} Rb2 {[%emt 0:00:03]} 47. Qd1 {[%emt 0:00:00]} (47. Qc3 $18) 47... Qh4 {[%emt 0:01:47] ( -> ...Qf2+)} 48. R5c2 {[%emt 0:00:00] Inhibits Qf2+.} Nxe5 {[%emt 0:00:23]} 49. dxe5 {[%emt 0:00:00]} Bf7 {[%emt 0:00:58]} (49... Qd8 $16 {was worth a try.} 50. Rxb2 Rxb2) 50. Qe2 {[%emt 0:00:00]} Rxc2 {[%emt 0:01:02]} 51. Qxc2 {[%emt 0:00:00]} Bd5 {[%emt 0:00:40]} 52. g3 {[%emt 0:00:00]} Qe7 {[%emt 0:00:02]} (52... Qd8 {keeps fighting.} 53. Qc5 Rb7) 53. e4 $18 {[%emt 0:00:00]} fxe4 {[%emt 0:00:05]} 54. Bxe4 {[%emt 0:00:00]} Qb4 {[%emt 0:01:35]} 55. Bxd5 {[%emt 0:00:00]} Qd4+ {[%emt 0:01:01]} (55... cxd5 $142 56. Qc7+ Kh8 57. Qxa7 Rg8) 56. Qf2 {[%emt 0:00:00]} Qxf2+ {[%emt 0:00:27]} 57. Kxf2 {[%emt 0:00:00] KRB-KR} Rb2+ {[%emt 0:00:13]} 58. Ke3 {[%emt 0:00:00]} cxd5 {[%emt 0:00:06]} 59. Rc7+ {[%emt 0:00:00]} Kg8 {[%emt 0:00:39]} 60. Rxa7 {[%emt 0:00:00]} Rxh2 {[%emt 0:00:06]} 61. a6 {[%emt 0:00:00] [#] Rb7 would kill now.} Rg2 {[%emt 0:00:23]} 62. Rb7 {[%emt 0:00:00] Weighted Error Value: White=0.07 (flawless) /Black=0.52} 1-0

[Event "Swedish Championship 2022"]
[Site "Uppsala"]
[Date "2022.07.03"]
[Round "2.3"]
[White "Hector, Jonny"]
[Black "Blomqvist, Erik"]
[Result "1-0"]
[ECO "B45"]
[WhiteElo "2441"]
[BlackElo "2521"]
[Annotator "TA"]
[PlyCount "73"]
[EventDate "2022.07.01"]
[EventType "tourn"]
[EventCountry "SWE"]
[SourceTitle "playchess.com"]
[Source "ChessBase"]
[SourceQuality "1"]
[TimeControl "40/5400+30:1800+30"]

{[%evp 21,73,29,33,31,53,17,17,18,23,18,16,16,40,-24,143,15,1,0,5,0,12,0,0,0,0,0,0,14,18,10,16,0,0,0,0,0,0,0,0,0,-4,-11,0,0,0,0,0,0,0,0,4,0,533,486]} 1. e4 {[%emt 0:00:06]} c5 {[%emt 0:00:07]} 2. Nf3 {[%emt 0:00:07]} e6 {[%emt 0:00:18]} 3. d4 {[%emt 0:00:13]} cxd4 {[%emt 0:00:12]} 4. Nxd4 {[%emt 0:00:08]} Nf6 {[%emt 0:00:24][%cal Bg8f6,Bf6d5,Bd5e3][%mdl 32]} 5. Nc3 {[%emt 0:00:09]} Nc6 {[%emt 0:00:06]} 6. Nxc6 {[%emt 0:01:24]} bxc6 {[%emt 0:00:08]} 7. e5 {[%emt 0:00:25]} Nd5 {[%emt 0:00:08]} 8. Ne4 {[%emt 0:01:24]} Qc7 {[%emt 0:00:30]} 9. f4 {[%emt 0:00:26]} Qb6 {[%emt 0:00:21]} 10. c4 {[%emt 0:02:26]} Ne3 {[%emt 0:00:38]} 11. Qd3 {[%emt 0:05:26]} Bb4+ {[%emt 0:00:32]} 12. Bd2 {[%emt 0:11:25] B45: Sicilian Four Knights.} Ba6 {[%emt 0:01:15]} 13. b3 {[%emt 0:06:41]} O-O {[%emt 0:01:15]} 14. Bxb4 {[%emt 0:06:32] The position is equal.} Qxb4+ {[%emt 0:00:26]} 15. Kf2 {[%emt 0:04:03]} Nd5 {[%emt 0:01:12]} 16. g3 {[%emt 0:09:34]} f6 {[%emt 0:01:28] [#] Hoping for ...fxe5.} 17. exf6 $146 {[%emt 0:08:11]} (17. Qd2 $14 fxe5 18. cxd5 Qxe4 19. Bxa6 exf4 20. Rhf1) ({Predecessor:} 17. Qc2 Nxf4 18. gxf4 fxe5 19. Kg2 Rxf4 20. Bd3 d5 21. Ng3 e4 22. Be2 Qc5 23. Rhf1 {1-0 (33) Fedorchuk,S (2645)-Sprenger,J (2536) Germany 2007}) 17... gxf6 $2 {[%emt 0:00:37]} (17... Nxf6 $11 18. Nxf6+ Rxf6) 18. Kg2 {[%emt 0:07:53]} ({Better is} 18. Qd4 $16) 18... f5 $132 {[%emt 0:19:34][%mdl 2048] Black puts up resistance} 19. Ng5 {[%emt 0:00:29][%cal Be4g5,Bg5f3,Bf3d2][%mdl 32]} Rae8 {[%emt 0:09:21]} 20. Nf3 {[%emt 0:02:35]} Re7 {[%emt 0:10:35]} 21. Qd2 {[%emt 0:02:11]} Qxd2+ {[%emt 0:00:44]} 22. Nxd2 {[%emt 0:00:02]} Ne3+ {[%emt 0:02:28]} 23. Kf3 {[%emt 0:00:55][%cal Bg2f3,Bf3f2,Bf2e3,Be3d3,Bd3c2][%mdl 32]} Nc2 {[%emt 0:00:54]} 24. Rc1 {[%emt 0:00:24]} Nd4+ {[%emt 0:03:52]} 25. Kf2 {[%emt 0:04:10]} e5 {[%emt 0:01:53]} 26. fxe5 {[%emt 0:01:18]} f4 {[%emt 0:04:39]} 27. gxf4 {[%emt 0:01:45]} Rxf4+ {[%emt 0:00:24]} 28. Ke3 {[%emt 0:01:02]} Rh4 $1 {[%emt 0:05:00]} 29. Rg1+ {[%emt 0:01:54]} Kf8 {[%emt 0:04:04]} 30. h3 {[%emt 0:05:48]} Rxe5+ {[%emt 0:02:58]} 31. Kd3 $1 {[%emt 0:00:02]} c5 {[%emt 0:10:49]} 32. Bg2 $1 {[%emt 0:05:46] Prevents Bb7.} Ne2 {[%emt 0:12:14]} 33. Rgf1+ {[%emt 0:04:52]} Nf4+ {[%emt 0:06:41]} 34. Kc2 {[%emt 0:00:29]} Ke7 {[%emt 0:00:51]} 35. Rce1 {[%emt 0:03:54]} d6 {[%emt 0:00:36]} 36. Ba8 {[%emt 0:01:41] [#] Strongly threatening Nf3.} Ng2 $2 {[%emt 0:00:41][%mdl 8192]} 37. Bxg2 {[%emt 0:00:43] Weighted Error Value: White=0.14 (very precise) /Black=0.40} 1-0

[Event "Swedish Championship 2022"]
[Site "Uppsala"]
[Date "2022.07.03"]
[Round "2.4"]
[White "Carlsson, Ludvig"]
[Black "Smith, Axel"]
[Result "1-0"]
[ECO "C42"]
[WhiteElo "2399"]
[BlackElo "2417"]
[Annotator "TA"]
[PlyCount "109"]
[EventDate "2022.07.01"]
[EventType "tourn"]
[EventCountry "SWE"]
[SourceTitle "playchess.com"]
[Source "ChessBase"]
[SourceQuality "1"]
[TimeControl "40/5400+30:1800+30"]

{[%evp 18,109,25,22,34,19,27,31,43,0,12,0,22,20,43,48,47,48,51,48,66,58,60,38,46,45,47,47,47,41,51,34,37,31,37,51,67,75,94,78,119,106,114,133,209,160,297,300,268,272,318,315,377,318,327,314,467,447,485,485,485,478,472,431,402,416,445,444,449,446,865,856,912,910,897,895,876,850,1203,1090,620,596,468,468,1479,1423,1414,1352,29986,2326,3910,2770,2406,1965]} 1. e4 {[%emt 0:00:11]} e5 {[%emt 0:00:04]} 2. Nc3 {[%emt 0:00:16]} Nf6 {[%emt 0:00:05]} 3. Nf3 {[%emt 0:00:11][%cal Bg1f3,Bf3e5,Be5d3,Bd3f4,Bf4d5][%mdl 32]} Bb4 {[%emt 0:00:45]} 4. Nxe5 {[%emt 0:00:23]} O-O {[%emt 0:00:25]} 5. Be2 {[%emt 0:02:27]} Re8 {[%emt 0:00:58]} 6. Nd3 {[%emt 0:00:37]} Bxc3 {[%emt 0:00:03]} 7. dxc3 {[%emt 0:00:11]} Nxe4 {[%emt 0:00:06]} 8. O-O {[%emt 0:00:14]} d6 {[%emt 0:00:30]} 9. Nf4 {[%emt 0:05:18]} Nd7 {[%emt 0:00:39]} 10. Be3 {[%emt 0:14:57]} Ndf6 {[%emt 0:24:20] [#] C42: Petroff Defence: 3 Nxe5 and unusual White 3rd moves.} 11. a4 $146 {[%emt 0:05:08]} ({Predecessor:} 11. Re1 h6 12. c4 Bf5 13. Qc1 Qd7 14. f3 Nc5 15. Bd4 Nh7 16. Nd5 c6 17. Ne3 Bg6 18. Qd2 {½-½ (41) Psakhis,L (2455)-Rozentalis,E (2526) Israel 2019}) 11... a5 {[%emt 0:01:15]} 12. Re1 {[%emt 0:00:20]} b6 {[%emt 0:03:10] White is slightly better.} 13. Nd5 {[%emt 0:04:06]} (13. Bb5 $5 {[%cal Rb5e8]} Bd7 14. f3 $11) 13... Bb7 {[%emt 0:09:59]} 14. Nxf6+ {[%emt 0:04:52]} Nxf6 {[%emt 0:01:42]} 15. Bb5 {[%emt 0:01:56]} c6 {[%emt 0:01:31]} (15... Nd7 {seems wilder.} 16. Qd2 h6 17. Bd4 Re6) 16. Bf1 {[%emt 0:04:11]} Nd5 {[%emt 0:01:37]} 17. Bd2 {[%emt 0:04:33]} Rxe1 {[%emt 0:01:14]} 18. Qxe1 {[%emt 0:00:42]} Qd7 {[%emt 0:00:48]} 19. f3 {[%emt 0:02:26]} Re8 {[%emt 0:01:19]} 20. Qf2 {[%emt 0:03:18]} (20. Qg3 $5 {[%cal Rc3c4]}) 20... c5 {[%emt 0:00:53]} 21. b3 {[%emt 0:00:48]} (21. Qg3 {keeps more tension.} Re6 22. Bd3 Qe7 23. Bg5) 21... Ne7 {[%emt 0:22:42]} 22. c4 {[%emt 0:09:54]} d5 {[%emt 0:01:35]} 23. cxd5 {[%emt 0:00:19]} Nxd5 {[%emt 0:00:47]} 24. Re1 {[%emt 0:03:14]} Rxe1 {[%emt 0:04:08]} 25. Qxe1 {[%emt 0:00:08]} Nb4 {[%emt 0:01:25]} 26. c3 {[%emt 0:00:19]} Nc6 {[%emt 0:04:40][%cal Bb4c6,Bc6e7,Be7d5,Bd5e3][%mdl 32]} 27. Bf4 {[%emt 0:01:16][%cal Of4c7] aiming for Bc7! White stays focused until the end.} Ne7 {[%emt 0:08:51]} 28. Qe5 {[%emt 0:01:09]} Nd5 {[%emt 0:00:16]} 29. Bg3 {[%emt 0:02:50]} f6 {[%emt 0:02:36]} 30. Qb8+ {[%emt 0:03:05]} Qc8 {[%emt 0:01:15] [#]} (30... Kf7 $16 {was called for.}) 31. Qd6 $1 $18 {[%emt 0:00:07]} Qf8 {[%emt 0:03:11] [#]} (31... Qc6 $16) 32. c4 $1 {[%emt 0:00:58]} Qxd6 {[%emt 0:00:15]} 33. Bxd6 {[%emt 0:00:02][%mdl 4096] Endgame KBB-KBN} Ne3 {[%emt 0:01:37]} 34. Bd3 {[%emt 0:01:07] Inhibits Nf5.} Bc8 {[%emt 0:00:14]} 35. Bc7 {[%emt 0:01:52]} Nf5 {[%emt 0:00:20]} 36. Bc2 {[%emt 0:01:15]} ({Resist} 36. Bxb6 Nd4 37. b4 (37. Bxc5 Nxb3 38. Be3 Kf7 $18) 37... axb4 38. Bxc5 Nc6 $18) 36... Ne3 {[%emt 0:01:45]} (36... Nd4 {is a better defense.}) 37. Be4 {[%emt 0:00:02]} Nf5 {[%emt 0:00:52]} 38. Bxb6 {[%emt 0:00:31]} Nd4 {[%emt 0:00:05]} 39. Bd5+ {[%emt 0:00:06] A strong pair of Bishops.} Kh8 {[%emt 0:00:10]} 40. Bxa5 {[%emt 0:03:25]} Nxb3 {[%emt 0:00:15]} 41. Bc3 {[%emt 0:30:05]} h5 {[%emt 0:05:19]} 42. Kf2 {[%emt 0:00:00]} Kh7 {[%emt 0:00:34]} 43. Ke3 {[%emt 0:00:00]} Kg6 {[%emt 0:00:04]} (43... Nc1 $142 44. Ba5 Bd7) 44. Be4+ {[%emt 0:00:00]} Kf7 {[%emt 0:02:03]} 45. Bc2 {[%emt 0:00:00]} Nc1 {[%emt 0:00:06]} 46. Bd2 {[%emt 0:00:00]} Na2 {[%emt 0:00:14]} 47. Bb3 {[%emt 0:00:00]} Nb4 {[%emt 0:00:19]} 48. Bxb4 {[%emt 0:00:00]} cxb4 {[%emt 0:00:03] KB-KB} 49. c5+ {[%emt 0:00:00]} Ke7 {[%emt 0:00:18]} 50. g3 {[%emt 0:00:00][%cal Bg2g3,Bg3h4][%mdl 32]} g5 {[%emt 0:01:03]} (50... Ba6 $142 51. Kd4 Kd7) 51. h4 {[%emt 0:00:00]} Kd7 {[%emt 0:02:32]} 52. Kd4 {[%emt 0:00:00]} f5 {[%emt 0:00:33]} 53. f4 {[%emt 0:00:00]} (53. hxg5 $142 Ke7 54. Ke5 Bd7 55. g6 Be8 56. g7 Bf7 57. Bxf7 Kxf7 58. c6) 53... gxh4 {[%emt 0:00:28]} 54. gxh4 {[%emt 0:00:00]} Kc6 {[%emt 0:00:17]} 55. Bd5+ {[%emt 0:00:00] Weighted Error Value: White=0.07 (flawless) /Black=0.46} 1-0

[Event "Swedish Championship 2022"]
[Site "Uppsala"]
[Date "2022.07.03"]
[Round "2.5"]
[White "Westerberg, Jonathan"]
[Black "Hillarp Persson, Tiger"]
[Result "1/2-1/2"]
[ECO "D00"]
[WhiteElo "2476"]
[BlackElo "2516"]
[Annotator "TA"]
[PlyCount "83"]
[EventDate "2022.07.01"]
[EventType "tourn"]
[EventCountry "SWE"]
[SourceTitle "playchess.com"]
[Source "ChessBase"]
[SourceQuality "1"]
[TimeControl "40/5400+30:1800+30"]

{[%evp 9,83,-29,-20,-27,-22,-25,-22,-19,-17,-32,-18,-37,-35,-31,-21,-60,-53,-71,-65,-116,-116,-111,-106,-117,-121,-118,-114,-135,-122,-129,-104,-137,-117,-120,-123,-133,-126,-129,-112,-119,-67,-72,-75,-75,0,0,6,6,6,11,6,0,0,0,0,0,77,76,71,51,75,98,131,127,110,125,135,7,8,8,9,0,14,0,11,0]} 1. Nc3 {[%emt 0:00:21]} d5 {[%emt 0:04:10]} 2. d4 {[%emt 0:01:01]} Nf6 {[%emt 0:02:22]} 3. Bf4 {[%emt 0:00:50]} a6 {[%emt 0:01:04]} 4. e3 {[%emt 0:06:58]} e6 {[%emt 0:05:06]} 5. a3 {[%emt 0:01:56]} c5 {[%emt 0:00:37]} 6. Nf3 {[%emt 0:02:17] D00: 1 d4 d5: Unusual lines.} b5 {[%emt 0:06:07]} 7. Bd3 {[%emt 0:08:09]} Bb7 {[%emt 0:01:54]} 8. O-O {[%emt 0:00:28]} Nbd7 {[%emt 0:22:11]} 9. Ne5 {[%emt 0:01:07]} Be7 {[%emt 0:03:52]} 10. Qf3 {[%emt 0:06:02]} O-O {[%emt 0:04:36]} 11. Qh3 {[%emt 0:02:05] [#]} c4 $146 {[%emt 0:01:17]} ({Predecessor:} 11... g6 12. Rad1 Nxe5 13. dxe5 Nd7 14. Bh6 Re8 15. f4 Qb6 16. Qg3 c4 17. Be2 Rad8 {1-0 (31) Lizak,P (2453)-Baasansuren,E (2221) Budapest 2017}) 12. Nxd7 {[%emt 0:03:14]} Qxd7 {[%emt 0:00:12]} 13. Be2 {[%emt 0:01:03]} a5 {[%emt 0:01:47]} 14. a4 {[%emt 0:14:34]} (14. b3 $15) 14... b4 $17 {[%emt 0:00:32]} 15. Nd1 {[%emt 0:00:36]} Rfc8 {[%emt 0:08:20]} 16. f3 {[%emt 0:05:24]} Bc6 {[%emt 0:01:39]} 17. b3 {[%emt 0:03:29]} Bb7 {[%emt 0:00:05]} 18. Nf2 {[%emt 0:02:38]} Ba6 {[%emt 0:00:09]} 19. Rfe1 {[%emt 0:01:41]} Ne8 {[%emt 0:06:46]} 20. Ng4 {[%emt 0:08:18]} f6 {[%emt 0:01:39]} 21. Nf2 {[%emt 0:03:34][%cal Bg4f2,Bf2d1,Bd1e3,Be3d5][%mdl 32]} cxb3 {[%emt 0:01:41]} 22. cxb3 {[%emt 0:00:07]} Bxe2 {[%emt 0:00:20]} 23. Rxe2 {[%emt 0:00:04]} Rc3 {[%emt 0:00:12]} 24. Rb1 {[%emt 0:00:57]} Nd6 {[%emt 0:08:10]} (24... Rac8 $17 {[%cal Oc3b3] Threatens to win with ...Rxb3!} 25. Ree1 Rc2) 25. Nd1 $15 {[%emt 0:01:42]} Rc6 {[%emt 0:00:30]} 26. e4 {[%emt 0:01:27]} Nf7 {[%emt 0:01:02]} (26... Nb7 $17 {White must now prevent ...dxe4.} 27. e5 Nd8) 27. Ne3 $1 $11 {[%emt 0:02:09] [#] Hoping for exd5.} Rd8 {[%emt 0:07:12]} 28. exd5 {[%emt 0:07:13]} exd5 {[%emt 0:00:07]} 29. Qxd7 {[%emt 0:01:06]} Rxd7 {[%emt 0:00:06] [#]} 30. Nxd5 $1 {[%emt 0:03:02]} Bf8 {[%emt 0:00:06]} 31. Ne3 {[%emt 0:00:08]} Rxd4 {[%emt 0:00:07]} 32. Bg3 {[%emt 0:00:10]} g6 {[%emt 0:08:36]} (32... Nd6 $11) 33. Nc4 $16 {[%emt 0:01:42]} Rd5 {[%emt 0:00:21]} 34. Kf1 {[%emt 0:06:06]} Kg7 {[%emt 0:00:19]} 35. Ke1 {[%emt 0:02:07]} Nd8 {[%emt 0:01:48]} 36. Rd1 {[%emt 0:00:33]} Rxd1+ {[%emt 0:00:09]} 37. Kxd1 {[%emt 0:00:02]} Nb7 {[%emt 0:00:11]} 38. Bf2 {[%emt 0:03:04] White is more active.} (38. Rd2 $16 {And now Rd7+ would win.} Nc5 39. Nxa5) 38... Kf7 $1 $11 {[%emt 0:01:32] The position is equal.} 39. Rd2 {[%emt 0:00:01]} Ke6 {[%emt 0:01:45] Inhibits Rd7.} 40. Re2+ {[%emt 0:00:06]} Kf7 {[%emt 0:00:46]} 41. Rd2 {[%emt 0:30:04] aiming for Rd7+.} Ke6 {[%emt 0:30:10] Prevents Rd7.} 42. Re2+ {[%emt 0:00:00] Weighted Error Value: White=0.14 (very precise) /Black=0.12 (very precise)} 1/2-1/2